bitfinex/quotes_ETHUSD_20241022
["timestamp","ask_amount","ask_price","bid_price","bid_amount"]
[1729638157534,1.6526926,2638.8,2638.4,6.82214]
[1729638157735,0.35398793,2638.7,2638.5,3.41102]
[1729638157949,1.6526926,2638.8,2638.5,3.41102]
[1729638158172,0.35398736,2638.7,2638.5,3.41102]
[1729638158388,1.6526926,2638.8,2638.5,3.41102]
[1729638158671,0.35400256,2638.7,2638.5,3.41102]
[1729638158882,1.6526926,2638.8,2638.5,3.41102]
[1729638159176,0.35400223,2638.7,2638.5,3.41102]
[1729638159378,1.6526926,2638.8,2638.5,3.41102]
[1729638159677,2.00671179,2638.7,2638.4,3.41107]
[1729638159878,1.6526926,2638.7,2638.4,6.82216]
[1729638160036,1.6526926,2638.8,2638.5,3.411]
[1729638160242,0.35403148,2638.7,2638.5,3.411]
[1729638160580,1.6526926,2638.8,2638.5,3.411]
[1729638160749,2.00673703,2638.7,2638.5,3.411]
[1729638160940,1.6526926,2638.7,2638.5,3.41101]
[1729638161575,1.6526926,2638.8,2638.5,3.41101]
[1729638161734,0.35407708,2638.7,2638.5,3.41101]
[1729638161938,1.6526926,2638.8,2638.5,3.41101]
[1729638162244,2.00676775,2638.7,2638.4,3.41107]
[1729638162441,1.6526926,2638.8,2638.4,3.41107]
[1729638162776,0.35411299,2638.7,2638.4,3.41109]
[1729638162977,1.6526926,2638.8,2638.4,3.41109]
[1729638163155,0.3541232,2638.7,2638.5,3.411]
[1729638163366,1.6526926,2638.8,2638.5,3.41094]
[1729638163672,0.35415457,2638.7,2638.5,6.82189]
[1729638163866,1.6526926,2638.8,2638.5,6.82189]
[1729638164086,0.35415502,2638.7,2638.5,6.82189]
[1729638164237,1.6526926,2638.8,2638.5,3.41093]
[1729638164443,0.35420069,2638.7,2638.5,3.41093]
[1729638164681,1.6526926,2638.8,2638.5,3.41093]
[1729638164889,0.35420088,2638.7,2638.5,6.82188]
[1729638165094,1.6526926,2638.8,2638.5,6.82188]
[1729638165447,0.3542527,2638.7,2638.5,6.82188]
[1729638165655,0.3542527,2638.6,2638.5,3.41093]
[1729638165867,1.6526926,2638.8,2638.6,3.41089]
[1729638166092,0.35425246,2638.7,2638.6,3.41089]
[1729638172587,0.3546479,2638.7,2638.6,3.41089]
[1729638176295,1.58886197,2638.8,2638.6,3.41089]
[1729638176603,2.0598907,2638.9,2638.6,3.41089]
[1729638176604,1.94374711,2638.7,2638.6,3.41089]
[1729638179098,1.94374711,2638.7,2638.5,3.41102]
[1729638179298,0.35488514,2638.6,2638.5,3.41102]
[1729638179518,3.15036134,2638.6,2638.2,1.044]
[1729638179814,1.59169486,2638.3,2638.2,3.41138]
[1729638180302,0.35536452,2638.3,2638.2,3.41138]
[1729638180671,2.3449831,2638.3,2638.2,3.41138]
[1729638180899,0.35536452,2638.3,2638.2,3.41138]
[1729638181465,1.94697665,2638.3,2638.2,3.41138]
[1729638181774,0.35536452,2638.3,2638.2,3.41138]
[1729638181978,1.94702967,2638.3,2638.2,3.41138]
[1729638182598,1.59166515,2638.3,2638.2,3.41138]
[1729638182762,1.94685961,2638.3,2638.2,3.41138]
[1729638187804,0.35519446,2638.3,2638.2,3.41138]
[1729638192788,0.35519446,2638.3,2638.0,1.044]
[1729638193125,3.24435775,2638.1,2637.9,3.4117]
[1729638193289,2.00788706,2638.0,2637.9,3.4117]
[1729638193619,0.7322,2637.9,2637.5,3.41221]
[1729638193913,0.7322,2637.5,2637.1,1.57]
[1729638194112,0.35519446,2637.4,2637.3,3.41248]
[1729638195319,1.6526926,2637.6,2637.2,3.41261]
[1729638195642,0.35452037,2637.5,2637.4,3.41244]
[1729638196059,2.00721297,2637.5,2637.3,3.41257]
[1729638196254,1.6526926,2637.5,2637.3,3.41257]
[1729638196417,1.6526926,2637.6,2637.3,3.41257]
[1729638196608,0.35438401,2637.5,2637.3,3.41257]
[1729638196915,1.6526926,2637.5,2637.2,6.82523]
[1729638197447,1.6526926,2637.4,2637.2,3.41261]
[1729638197631,1.6526926,2637.5,2637.2,3.41261]
[1729638197809,1.6526926,2637.6,2637.3,3.41257]
[1729638198147,0.35425316,2637.5,2637.3,3.41257]
[1729638198478,1.6526926,2637.6,2637.3,3.41257]
[1729638202431,0.07573007,2637.5,2637.3,3.41257]
[1729638203242,1.72842267,2637.6,2637.3,3.41257]
[1729638203455,2.46062267,2637.7,2637.3,3.41257]
[1729638203618,1.6526926,2637.6,2637.3,3.41257]
[1729638203956,1.6526926,2637.6,2637.4,3.41244]
[1729638204181,0.80793007,2637.7,2637.4,3.41244]
[1729638204182,2.46062267,2637.7,2637.4,3.41244]
[1729638204363,1.6526926,2637.6,2637.4,3.41244]
[1729638204962,1.6526926,2637.6,2637.2,3.41261]
[1729638204963,1.6526926,2637.6,2637.3,3.41256]
[1729638207324,0.80793007,2637.7,2637.1,1.57]
[1729638207325,1.6526926,2637.4,2637.1,1.57]
[1729638207550,1.6526926,2637.2,2637.1,1.57]
[1729638208769,0.80793007,2637.3,2637.1,1.57]
[1729638208770,2.46062267,2637.3,2637.1,1.57]
[1729638209064,2.46062267,2637.3,2637.1,4.98283]
[1729638209263,0.07573007,2637.3,2637.2,3.41271]
[1729638209458,1.6526926,2637.4,2637.2,3.41271]
[1729638209637,2.3848926,2637.5,2637.2,3.41271]
[1729638209845,1.6526926,2637.4,2637.2,3.41271]
[1729638210355,1.6526926,2637.4,2637.1,1.57]
[1729638210553,1.72842267,2637.4,2637.1,1.57]
[1729638212080,1.6526926,2637.3,2637.1,1.57]
[1729638212440,1.72842267,2637.4,2637.1,1.57]
[1729638212756,1.72842267,2637.4,2637.1,4.98276]
[1729638212963,0.7322,2637.5,2637.2,3.4127]
[1729638214363,1.72842267,2637.6,2637.3,3.41249]
[1729638217678,1.72842267,2637.6,2637.4,3.41236]
[1729638217994,0.07573007,2637.7,2637.4,4.094858]
[1729638218283,0.07573007,2637.8,2637.5,3.41226]
[1729638219282,1.72842267,2637.8,2637.5,3.41226]
[1729638222714,1.6526926,2637.6,2637.5,3.41226]
[1729638223399,1.6526926,2637.7,2637.5,3.41226]
[1729638229212,0.3541635,2637.6,2637.5,3.41226]
[1729638229371,2.39782689,2637.9,2637.5,3.41226]
[1729638229372,1.72842267,2637.7,2637.5,3.41226]
[1729638229703,1.72842267,2637.7,2637.4,0.7914]
[1729638229913,0.35420379,2637.6,2637.4,4.20381]
[1729638230084,2.00689899,2637.6,2637.4,4.20381]
[1729638230401,1.6526926,2637.6,2637.4,4.20381]
[1729638230905,1.6526926,2637.7,2637.4,4.20381]
[1729638231124,0.35426518,2637.6,2637.4,4.20381]
[1729638231273,1.6526926,2637.7,2637.4,4.20381]
[1729638231473,0.35432288,2637.6,2637.4,4.20381]
[1729638231675,1.6526926,2637.7,2637.4,4.20381]
[1729638231883,0.35432482,2637.6,2637.4,4.20381]
[1729638232081,1.6526926,2637.7,2637.4,4.20381]
[1729638232311,0.35433911,2637.6,2637.4,4.20381]
[1729638232515,0.35433911,2637.5,2637.4,4.20381]
[1729638232891,0.35433911,2637.6,2637.4,4.20381]
[1729638233091,1.6526926,2637.7,2637.4,4.20381]
[1729638233302,0.35446614,2637.6,2637.4,4.20381]
[1729638233630,1.6526926,2637.7,2637.4,4.20381]
[1729638233776,0.35446831,2637.6,2637.4,4.20381]
[1729638233975,0.35446831,2637.5,2637.4,4.20381]
[1729638237416,0.354914,2637.5,2637.4,4.20381]
[1729638237713,0.35492179,2637.5,2637.4,4.20381]
[1729638240721,1.58989682,2637.6,2637.4,4.20381]
[1729638240933,1.58989682,2637.6,2637.5,3.41232]
[1729638241247,1.9450751,2637.6,2637.5,3.41232]
[1729638246520,1.9450751,2637.6,2637.4,0.7914]
[1729638246821,0.35517828,2637.5,2637.4,4.20384]
[1729638247016,1.58989682,2637.6,2637.4,4.20384]
[1729638247200,0.35516719,2637.5,2637.4,4.20384]
[1729638247816,0.35516268,2637.5,2637.4,4.20384]
[1729638250601,0.35516013,2637.5,2637.4,4.20384]
[1729638254330,0.35517682,2637.5,2637.4,4.20384]
[1729638254824,2.00786942,2637.5,2637.4,3.41244]
[1729638255031,0.35517682,2637.5,2637.4,3.41244]
[1729638256883,0.35528073,2637.5,2637.4,3.41244]
[1729638258510,3.59787015,2637.5,2637.4,3.41244]
[1729638261746,3.59807547,2637.5,2637.4,3.41244]
[1729638262952,1.94538287,2637.5,2637.4,3.41244]
[1729638264822,0.35548605,2637.5,2637.4,3.41244]
[1729638265028,2.34689148,2637.5,2637.4,3.41244]
[1729638265522,1.94858264,2637.5,2637.4,3.41244]
[1729638266150,0.35548605,2637.5,2637.4,3.41244]
[1729638266445,1.94856209,2637.5,2637.4,3.41244]
[1729638268449,1.59307604,2637.5,2637.4,3.41244]
[1729638279939,1.59302986,2637.5,2637.4,3.41244]
[1729638280146,1.59300908,2637.5,2637.4,3.41244]
[1729638280565,1.99124684,2637.6,2637.4,3.41244]
[1729638281276,1.6526926,2637.7,2637.4,3.41244]
[1729638281991,1.59304165,2637.5,2637.4,3.41244]
[1729638283954,1.59304165,2637.5,2637.3,3.41251]
[1729638284157,1.59304165,2637.5,2637.4,3.41245]
[1729638287391,1.6526926,2637.7,2637.4,3.41245]
[1729638295113,1.6526926,2637.7,2637.4,3.41238]
[1729638295269,1.59306946,2637.5,2637.4,3.41238]
[1729638312786,1.59306946,2637.5,2637.4,4.98238]
[1729638319243,1.59306946,2637.5,2637.4,4.98245]
[1729638319608,1.59306946,2637.5,2637.4,1.57]
[1729638320055,1.59306946,2637.5,2637.4,4.98245]
[1729638320344,1.99156855,2637.6,2637.4,4.98245]
[1729638321201,1.99156855,2637.6,2637.4,1.57]
[1729638321446,1.99156855,2637.5,2637.4,1.57]
[1729638321822,1.99156855,2637.6,2637.4,4.98245]
[1729638322208,3.64426115,2637.6,2637.4,1.57]
[1729638322448,2.38988226,2637.5,2637.4,1.57]
[1729638322649,1.99172114,2637.5,2637.4,1.57]
[1729638324028,1.59321639,2637.5,2637.4,1.57]
[1729638324775,1.99172114,2637.6,2637.4,1.57]
[1729638327074,1.59323676,2637.5,2637.4,4.98236]
[1729638327367,1.59192447,2637.5,2637.4,4.98236]
[1729638327568,1.59192447,2637.5,2637.4,1.57]
[1729638328137,2.3848926,2637.5,2637.4,1.57]
[1729638330291,2.46062267,2637.5,2637.4,1.57]
[1729638331390,5.87294267,2637.5,2637.4,1.57]
[1729638334681,8.26091993,2637.5,2637.4,1.57]
[1729638334896,5.7972126,2637.5,2637.4,1.57]
[1729638335186,5.87294267,2637.5,2637.4,1.57]
[1729638345404,7.86120339,2637.5,2637.4,1.57]
[1729638345616,7.78547332,2637.5,2637.4,1.57]
[1729638346031,7.78548821,2637.5,2637.4,1.57]
[1729638346397,5.7972126,2637.5,2637.4,1.57]
[1729638346725,6.2084837,2637.5,2637.4,1.57]
[1729638347028,5.87294267,2637.5,2637.4,1.57]
[1729638347594,7.86111642,2637.5,2637.4,1.57]
[1729638347900,5.7972126,2637.5,2637.4,1.57]
[1729638348116,5.87294267,2637.5,2637.4,1.57]
[1729638348494,7.86108628,2637.5,2637.4,1.57]
[1729638348688,7.78535621,2637.5,2637.4,1.57]
[1729638348993,5.7972126,2637.5,2637.4,1.57]
[1729638349204,5.87294267,2637.5,2637.4,1.57]
[1729638349588,7.86105033,2637.5,2637.4,1.57]
[1729638349793,7.78532026,2637.5,2637.4,1.57]
[1729638350206,7.78529537,2637.5,2637.4,1.57]
[1729638351399,7.78530284,2637.5,2637.4,1.57]
[1729638352654,5.7972126,2637.5,2637.4,1.57]
[1729638352855,7.86104909,2637.5,2637.4,1.57]
[1729638353022,7.78531902,2637.5,2637.4,1.57]
[1729638353351,5.7972126,2637.5,2637.4,1.57]
[1729638353647,5.87294267,2637.5,2637.4,1.57]
[1729638353829,7.86104152,2637.5,2637.4,1.57]
[1729638354040,5.7972126,2637.5,2637.4,1.57]
[1729638354212,5.87294267,2637.5,2637.4,1.57]
[1729638357817,7.86112987,2637.5,2637.4,1.57]
[1729638358150,5.7972126,2637.5,2637.4,1.57]
[1729638358311,7.86115698,2637.5,2637.4,1.57]
[1729638358511,7.78542691,2637.5,2637.4,1.57]
[1729638358741,5.7972126,2637.5,2637.4,1.57]
[1729638358923,5.87294267,2637.5,2637.4,1.57]
[1729638366351,11.25925374,2637.5,2637.4,1.57]
[1729638366685,11.59210162,2637.5,2637.4,1.57]
[1729638366855,8.8072126,2637.5,2637.4,1.57]
[1729638369064,8.7972126,2637.5,2637.4,1.57]
[1729638369364,8.8072126,2637.5,2637.4,1.57]
[1729638370291,11.59029286,2637.5,2637.4,1.57]
[1729638370487,11.59039812,2637.5,2637.4,1.57]
[1729638371002,9.92770552,2637.5,2637.4,1.57]
[1729638371197,8.0650126,2637.5,2637.4,1.57]
[1729638371370,10.45043402,2637.5,2637.4,1.57]
[1729638374455,11.18322845,2637.5,2637.4,1.57]
[1729638375983,9.53053585,2637.5,2637.4,1.57]
[1729638376177,11.18322845,2637.5,2637.4,1.57]
[1729638377954,5.79833585,2637.5,2637.4,1.57]
[1729638378149,2.46174592,2637.5,2637.4,1.57]
[1729638378382,7.52675852,2637.5,2637.4,1.57]
[1729638378820,2.46174592,2637.5,2637.4,1.57]
[1729638378983,4.11443852,2637.5,2637.4,1.57]
[1729638381664,5.14074267,2637.5,2637.4,1.57]
[1729638389987,1.72842267,2637.5,2637.4,1.57]
[1729638390698,3.0,2637.7,2637.4,1.57]
[1729638390699,1.72842267,2637.6,2637.5,0.8073]
[1729638392700,1.72842267,2637.6,2637.4,1.57]
[1729638393004,5.0650126,2637.5,2637.4,1.57]
[1729638393309,7.12887987,2637.5,2637.4,1.57]
[1729638393664,5.14074267,2637.5,2637.4,1.57]
[1729638393870,7.12887987,2637.5,2637.4,1.57]
[1729638394672,7.12883814,2637.5,2637.4,1.57]
[1729638394971,5.14074267,2637.5,2637.4,1.57]
[1729638395378,7.12883814,2637.5,2637.4,1.57]
[1729638396175,5.87294267,2637.5,2637.4,1.57]
[1729638396399,8.25887493,2637.5,2637.4,1.57]
[1729638396623,5.7972126,2637.5,2637.4,1.57]
[1729638396916,5.87294267,2637.5,2637.4,1.57]
[1729638401885,11.65627633,2637.5,2637.4,1.57]
[1729638402085,11.58054626,2637.5,2637.4,1.57]
[1729638403133,12.14054626,2637.5,2637.4,1.57]
[1729638403286,9.3572126,2637.5,2637.4,1.57]
[1729638403483,12.64502549,2637.5,2637.4,1.57]
[1729638404119,9.3572126,2637.5,2637.4,1.57]
[1729638404329,12.64502549,2637.5,2637.4,1.57]
[1729638405085,9.3572126,2637.5,2637.4,1.57]
[1729638405525,12.64502549,2637.5,2637.4,1.57]
[1729638406238,9.3572126,2637.5,2637.4,1.57]
[1729638406531,12.64502549,2637.5,2637.4,1.57]
[1729638406693,9.3572126,2637.5,2637.4,1.57]
[1729638413146,3.41322,2636.8,2636.7,0.7585]
[1729638413436,5.14164267,2636.8,2636.7,0.7585]
[1729638416112,3.41367,2636.5,2636.1,0.7585]
[1729638416307,1.6526926,2636.3,2636.1,0.7585]
[1729638416612,5.14217267,2636.4,2636.1,0.7585]
[1729638419034,3.48952007,2636.4,2636.2,0.7585]
[1729638420980,6.65385361,2636.5,2636.2,0.7585]
[1729638421186,5.00116101,2636.5,2636.2,0.7585]
[1729638421457,1.58755101,2636.5,2636.2,0.7585]
[1729638423417,3.41361,2636.5,2636.2,0.7585]
[1729638423617,3.41361,2636.5,2636.3,0.8186]
[1729638424075,5.0663026,2636.5,2636.3,0.8186]
[1729638427749,8.4799926,2636.5,2636.3,0.8186]
[1729638428078,8.4800126,2636.5,2636.3,0.8186]
[1729638428785,5.0663026,2636.5,2636.3,0.8186]
[1729638429887,8.4800326,2636.5,2636.3,0.8186]
[1729638430185,5.0663026,2636.5,2636.3,0.8186]
[1729638430548,5.14203267,2636.5,2636.3,0.8186]
[1729638430994,8.55572267,2636.5,2636.3,0.8186]
[1729638431160,5.0663026,2636.5,2636.3,0.8186]
[1729638431675,5.14203267,2636.5,2636.3,0.8186]
[1729638431989,3.48934007,2636.5,2636.3,0.8186]
[1729638437363,5.14203267,2636.5,2636.3,0.8186]
[1729638437962,8.55572267,2636.5,2636.3,0.8186]
[1729638438192,3.41374,2636.4,2636.3,0.8186]
[1729638438672,3.41402,2636.2,2635.9,0.8083]
[1729638438871,1.6526926,2636.2,2635.9,0.8083]
[1729638439076,5.0667126,2636.2,2635.9,0.8083]
[1729638439598,3.41414,2636.1,2635.9,0.8083]
[1729638439763,5.0667126,2636.2,2635.9,0.8083]
[1729638441091,1.6526926,2636.1,2635.9,0.8083]
[1729638441299,5.0667126,2636.2,2635.9,0.8083]
[1729638442504,1.6526926,2636.1,2635.9,0.8083]
[1729638442716,5.0670126,2636.0,2635.7,0.8083]
[1729638443010,6.65456361,2636.0,2635.7,0.8083]
[1729638443210,0.07573007,2635.9,2635.7,0.8083]
[1729638443715,6.73029368,2636.0,2635.7,0.8083]
[1729638443872,3.49005007,2636.0,2635.7,0.8083]
[1729638444076,5.07760108,2636.0,2635.7,0.8083]
[1729638444512,0.07573007,2636.0,2635.7,0.8083]
[1729638449191,1.58755101,2636.3,2636.0,0.8083]
[1729638449497,1.98712151,2636.4,2636.1,0.8083]
[1729638449498,1.58755101,2636.4,2636.1,0.8083]
[1729638449703,6.65387361,2636.5,2636.1,0.8083]
[1729638449907,6.72960368,2636.5,2636.1,0.8083]
[1729638450084,1.58755101,2636.4,2636.1,0.8083]
[1729638450892,1.72842267,2636.3,2636.1,0.8083]
[1729638451279,1.6526926,2636.2,2636.1,0.8083]
[1729638451486,6.72985368,2636.3,2636.1,0.8083]
[1729638451696,3.31597368,2636.3,2636.1,0.8083]
[1729638453393,3.31597368,2636.3,2635.9,4.18564]
[1729638454302,5.0669526,2636.0,2635.3,0.7950545]
[1729638454508,1.6526926,2635.6,2635.4,4.18632]
[1729638454930,1.6526926,2635.8,2635.4,4.18632]
[1729638455288,3.24024361,2635.8,2635.4,4.18632]
[1729638455487,1.6526926,2635.8,2635.4,4.18632]
[1729638455888,3.24024361,2635.8,2635.4,4.18632]
[1729638456587,6.73038368,2635.9,2635.4,4.18632]
[1729638457288,1.6526926,2635.8,2635.4,4.18632]
[1729638457514,3.24024361,2635.8,2635.4,4.18632]
[1729638457720,1.72842267,2635.8,2635.4,4.18632]
[1729638458634,5.14301267,2635.8,2635.4,0.7713]
[1729638458839,1.6526926,2635.7,2635.4,0.7713]
[1729638464409,1.72842267,2635.8,2635.4,0.7713]
[1729638464609,1.6526926,2635.7,2635.4,0.7713]
[1729638468213,0.07573007,2635.6,2635.4,0.7713]
[1729638468443,1.6526926,2635.8,2635.4,4.18627]
[1729638473660,1.72842267,2635.7,2635.4,4.18627]
[1729638474108,0.07573007,2635.7,2635.4,4.18627]
[1729638474514,1.72842267,2635.8,2635.4,4.18627]
[1729638475128,1.6526926,2635.7,2635.4,4.18627]
[1729638477516,1.72842267,2635.8,2635.4,4.18627]
[1729638478254,1.6526926,2635.7,2635.4,4.18627]
[1729638480051,1.6526926,2635.6,2635.4,0.7713]
[1729638480267,1.6526926,2635.7,2635.4,0.7713]
[1729638480467,1.72842267,2635.6,2635.2,0.7713]
[1729638480673,1.72842267,2635.6,2635.2,4.1866]
[1729638484355,1.6526926,2635.5,2635.2,4.1866]
[1729638484562,1.6526926,2635.5,2635.2,0.7713]
[1729638485044,1.6526926,2635.5,2635.2,4.18654]
[1729638485883,1.6526926,2635.5,2635.0,0.7882]
[1729638485884,1.6526926,2635.3,2635.0,0.7882]
[1729638486070,1.6526926,2635.1,2635.0,0.7882]
[1729638486690,1.72842267,2635.2,2635.0,0.7882]
[1729638488453,1.6526926,2635.1,2635.0,0.7882]
[1729638488681,1.6526926,2635.1,2634.8,0.7882]
[1729638488860,5.0680026,2635.2,2634.8,4.20399]
[1729638489245,1.72842267,2635.1,2634.8,4.20399]
[1729638489447,1.72842267,2635.1,2634.8,0.7882]
[1729638489891,1.6526926,2635.1,2634.8,0.7882]
[1729638490185,0.07573007,2635.3,2634.8,0.7882]
[1729638490186,1.6526926,2635.2,2634.8,0.7882]
[1729638490404,5.0680126,2635.2,2634.8,0.7882]
[1729638491049,1.6526926,2634.9,2634.8,0.7882]
[1729638491255,1.6526926,2634.9,2634.5,0.7882]
[1729638491519,1.6526926,2634.7,2634.5,0.7882]
[1729638492554,5.14443267,2634.7,2634.5,0.7882]
[1729638492791,0.07573007,2634.7,2634.5,0.7882]
[1729638499724,2.31975101,2635.1,2634.6,5.0686826]
[1729638499725,0.7322,2635.1,2634.6,5.0686826]
[1729638499928,3.41544,2635.1,2634.7,0.7767]
[1729638500094,3.49117007,2635.1,2634.7,0.7767]
[1729638500305,5.14386267,2635.1,2634.7,0.7767]
[1729638500518,3.49117007,2635.1,2634.7,0.7767]
[1729638500719,0.07573007,2635.1,2634.7,4.19263]
[1729638500931,0.07573007,2635.2,2634.8,0.7767]
[1729638501084,5.0680026,2635.2,2634.8,0.7767]
[1729638501280,5.14373267,2635.2,2634.8,0.7767]
[1729638502329,1.6526926,2634.9,2634.8,0.7767]
[1729638503025,5.14398267,2635.0,2634.8,0.7767]
[1729638503526,1.6526926,2634.9,2634.8,0.7767]
[1729638504189,1.72842267,2635.0,2634.8,0.7767]
[1729638504588,1.6526926,2634.9,2634.5,0.7767]
[1729638504787,1.6526926,2634.9,2634.5,4.1929]
[1729638504988,1.72842267,2634.9,2634.5,4.1929]
[1729638505310,1.6526926,2634.9,2634.5,4.1929]
[1729638505714,1.6526926,2634.9,2634.5,7.60903]
[1729638505920,1.6526926,2634.9,2634.5,4.19283]
[1729638506092,1.6526926,2634.9,2634.5,7.60896]
[1729638506287,3.41543,2635.1,2634.6,3.41598]
[1729638506493,5.14385267,2635.1,2634.6,3.41598]
[1729638506701,1.6526926,2635.0,2634.6,3.41598]
[1729638507021,5.14385267,2635.1,2634.7,0.7767]
[1729638507327,5.0682526,2635.0,2634.7,0.7767]
[1729638507483,1.6526926,2634.9,2634.7,0.7767]
[1729638507687,1.72842267,2634.8,2634.5,0.7767]
[1729638507893,1.72842267,2634.8,2634.4,0.7767]
[1729638508119,5.14427267,2634.8,2634.4,0.7767]
[1729638508506,1.6526926,2634.7,2634.4,0.7767]
[1729638508720,1.6526926,2634.6,2634.4,0.7767]
[1729638508923,3.49173007,2634.7,2634.4,0.7767]
[1729638509152,5.14442267,2634.7,2634.4,0.7767]
[1729638512021,1.6526926,2634.8,2634.4,0.7767]
[1729638512852,1.6526926,2634.8,2634.4,4.19292]
[1729638513151,5.0685326,2634.8,2634.4,4.19292]
[1729638513506,5.14426267,2634.8,2634.4,4.19292]
[1729638514347,5.14426267,2634.8,2634.4,0.7767]
[1729638516448,3.41544,2635.1,2634.6,4.24919]
[1729638517444,5.0681326,2635.1,2634.6,4.24919]
[1729638518245,3.41544,2635.1,2634.6,4.24919]
[1729638518940,5.0681326,2635.1,2634.6,4.24919]
[1729638519740,3.41544,2635.1,2634.7,3.41594]
[1729638520418,5.14372267,2635.2,2634.7,3.41594]
[1729638521039,1.6526926,2635.1,2634.7,3.41594]
[1729638523077,5.0681226,2635.1,2634.7,3.41594]
[1729638526167,1.72842267,2635.0,2634.6,4.24925]
[1729638526747,1.6526926,2634.9,2634.6,4.24925]
[1729638526946,1.72842267,2635.0,2634.6,4.24925]
[1729638527476,6.73140368,2635.1,2634.6,4.24925]
[1729638527682,1.6526926,2635.0,2634.6,4.24925]
[1729638528272,5.0682526,2635.0,2634.6,0.8332]
[1729638528451,5.14398267,2635.0,2634.6,0.8332]
[1729638528778,1.72842267,2635.0,2634.6,4.24927]
[1729638529765,3.31597368,2635.0,2634.6,4.24927]
[1729638531109,1.58755101,2635.0,2634.6,4.24927]
[1729638531396,3.24024361,2635.0,2634.7,3.41592]
[1729638531599,3.24024361,2635.0,2634.6,4.24924]
[1729638533571,1.58755101,2634.9,2634.6,4.24924]
[1729638534001,1.58755101,2634.9,2634.7,3.41593]
[1729638535572,1.58755101,2634.9,2634.8,3.41581]
[1729638535772,1.58755101,2635.0,2634.9,0.8109]
[1729638536606,1.58755101,2635.2,2634.9,1.233571]
[1729638536812,1.58755101,2635.2,2635.0,3.41546]
[1729638537474,1.58755101,2635.2,2634.9,0.8109]
[1729638537678,1.58755101,2635.2,2634.9,4.22658]
[1729638537987,1.58755101,2635.2,2635.0,3.41554]
[1729638538176,2.06287088,2635.3,2635.0,3.41554]
[1729638538377,3.71556348,2635.3,2635.0,3.41554]
[1729638539078,3.7157156,2635.3,2635.0,3.41554]
[1729638539283,3.7157156,2635.3,2634.9,0.8109]
[1729638540511,1.6526926,2635.1,2634.9,0.8109]
[1729638541681,3.7157156,2635.3,2634.9,4.22655]
[1729638541882,1.6526926,2635.2,2634.9,4.22655]
[1729638542623,2.06315479,2635.3,2634.9,4.22655]
[1729638542624,2.06315479,2635.3,2635.0,3.41554]
[1729638542918,0.07573007,2635.3,2635.0,3.41554]
[1729638543127,1.6526926,2635.2,2635.0,3.41554]
[1729638543280,3.71584739,2635.3,2634.9,4.22658]
[1729638543718,1.72842267,2635.3,2634.9,4.22658]
[1729638543917,1.6526926,2635.3,2634.9,4.22658]
[1729638544076,1.72842267,2635.3,2634.9,4.22658]
[1729638544319,3.71584739,2635.3,2634.9,4.22658]
[1729638544536,1.72842267,2635.3,2634.9,4.22658]
[1729638544938,1.6526926,2635.2,2634.9,4.22658]
[1729638546934,1.6526926,2635.3,2634.9,4.22649]
[1729638547144,3.63991331,2635.3,2635.0,3.41555]
[1729638547351,3.63991331,2635.3,2634.9,4.22649]
[1729638547658,1.6526926,2635.3,2634.9,4.22649]
[1729638548025,1.72842267,2635.3,2634.9,4.22649]
[1729638548226,1.6526926,2635.3,2634.9,4.22649]
[1729638549072,1.6526926,2635.3,2635.0,3.41549]
[1729638549224,1.98722071,2635.5,2635.2,3.41521]
[1729638549571,6.53152485,2635.7,2635.3,4.21473]
[1729638549572,3.63991331,2635.7,2635.3,4.21473]
[1729638549769,1.72842267,2635.7,2635.3,4.21473]
[1729638549940,3.63991331,2635.7,2635.4,3.41495]
[1729638550269,1.6526926,2635.7,2635.4,3.41495]
[1729638555874,1.6526926,2635.9,2635.6,3.41476]
[1729638556194,1.6526926,2635.7,2635.6,3.41476]
[1729638556880,1.6526926,2635.8,2635.6,3.41476]
[1729638557306,1.6526926,2635.7,2635.6,3.41476]
[1729638557607,0.07573007,2635.9,2635.5,0.7996]
[1729638557608,1.6526926,2635.8,2635.5,0.7996]
[1729638558103,1.6526926,2635.8,2635.5,4.21444]
[1729638559766,1.6526926,2635.8,2635.6,3.41471]
[1729638563811,1.6526926,2635.7,2635.5,4.21444]
[1729638564016,1.6526926,2635.7,2635.5,7.62926]
[1729638564173,1.6526926,2635.7,2635.5,4.21442]
[1729638564387,1.6526926,2635.8,2635.5,4.21442]
[1729638564588,1.6526926,2635.8,2635.6,3.41472]
[1729638566121,1.6526926,2635.8,2635.6,3.41471]
[1729638566328,1.6526926,2635.8,2635.7,3.41465]
[1729638566493,0.07573007,2636.0,2635.7,3.41465]
[1729638566494,0.80793007,2636.2,2635.7,5.8302386]
[1729638566687,1.6526926,2636.3,2636.0,3.41425]
[1729638566905,0.7322,2636.4,2636.0,3.41425]
[1729638566906,2.46062267,2636.4,2636.0,3.41425]
[1729638567131,1.6526926,2636.3,2636.0,3.41425]
[1729638567332,0.80793007,2636.4,2636.0,6.82845]
[1729638567545,1.6526926,2636.3,2636.0,6.82845]
[1729638567698,1.6526926,2636.3,2636.0,3.4142]
[1729638568098,1.6526926,2636.2,2636.0,3.4142]
[1729638569827,1.6526926,2636.2,2636.0,3.41419]
[1729638573034,0.7322,2636.6,2636.1,4.17587]
[1729638573365,1.6526926,2636.7,2636.4,4.17545]
[1729638573565,2.3848926,2636.8,2636.4,4.17545]
[1729638573714,1.6526926,2636.7,2636.4,4.17543]
[1729638573913,4.14551,2636.8,2636.4,0.7618]
[1729638574118,4.14551,2636.8,2636.1,4.17591]
[1729638574119,5.7985126,2636.5,2636.1,4.17591]
[1729638574378,1.6526926,2636.3,2636.1,0.7618]
[1729638574580,1.6526926,2636.4,2636.1,4.17584]
[1729638575276,1.6526926,2636.3,2636.1,4.17584]
[1729638576253,1.6526926,2636.4,2636.1,4.17584]
[1729638576465,1.6526926,2636.3,2636.1,4.17584]
[1729638576677,1.6526926,2636.4,2636.1,4.17584]
[1729638579458,1.6526926,2636.4,2636.2,3.41399]
[1729638579792,1.6526926,2636.4,2636.1,4.17584]
[1729638580152,1.6526926,2636.4,2636.1,7.5899]
[1729638581483,1.6526926,2636.4,2636.2,3.41396]